[Event "EYCC 2017"]
[Site "Mamaia"]
[Date "2017.09.12"]
[Round "7"]
[White "Lehaci, Miruna-Daria"]
[Black "Ciolacu, Alessia-Mihaela"]
[Result "1/2-1/2"]
[ECO "A07"]
[WhiteElo "1914"]
[BlackElo "1787"]
[Annotator "NA RC"]
[PlyCount "110"]
[EventDate "2017.??.??"]
[EventType "swiss"]
[EventCountry "ROU"]
[SourceTitle "playchess.com"]
[Source "ChessBase"]
[SourceQuality "1"]
[TimeControl "40/5400+30:1800+30"]

1. Nf3 {[%emt 0:00:00]} d5 {[%emt 0:00:08]} 2. g3 {[%emt 0:00:00]} Nf6 {[%emt 0:00:26]} 3. Bg2 c6 4. O-O {[%emt 0:01:24]} Bg4 {[%emt 0:01:05]} 5. d4 {[%emt 0:00:14]} Nbd7 {[%emt 0:11:30]} 6. Nbd2 {[%emt 0:03:41]} e6 {[%emt 0:00:59]} 7. Re1 {[%emt 0:00:37]} Be7 {[%emt 0:07:19]} 8. e4 {[%emt 0:02:58]} dxe4 {[%emt 0:06:17]} 9. Nxe4 {[%emt 0:00:07]} Nxe4 {[%emt 0:00:25]} 10. Rxe4 {[%emt 0:00:06]} Nf6 {[%emt 0:00:58]} 11. Re1 {[%emt 0:02:07]} O-O {[%emt 0:01:31] D02: 1 d4 d5 2 Nf3 sidelines, including 2...Nf6 3 g3 and 2...Nf6 3 Bf4} 12. h3 {[%emt 0:04:13]} Bh5 {[%emt 0:02:55]} 13. g4 {[%emt 0:02:34]} Bg6 {[%emt 0:00:35]} 14. Ne5 {[%emt 0:06:28]} Nd5 $146 {[%emt 0:08:12]} ({Predecessor:} 14... Nd7 15. Nxg6 hxg6 16. c4 Bd6 17. g5 Rc8 18. c5 Bb8 19. b4 {1-0 (54) Salem,A (2586)-Khader,S (2380) Amman 2014}) 15. c3 {[%emt 0:12:38]} Bg5 {[%emt 0:25:18]} 16. Nxg6 {[%emt 0:15:17]} hxg6 {[%emt 0:00:25]} 17. Bxg5 {[%emt 0:02:13]} Qxg5 {[%emt 0:00:10]} 18. Re5 {[%emt 0:00:07]} Qh4 {[%emt 0:04:38]} 19. Qf3 {[%emt 0:08:14]} g5 {[%emt 0:02:39]} 20. Qg3 {[%emt 0:06:00]} Nf4 {[%emt 0:01:00]} 21. Qxh4 {[%emt 0:05:27]} gxh4 {[%emt 0:00:08]} 22. Bf1 {[%emt 0:00:26]} f6 {[%emt 0:04:54]} 23. Re3 {[%emt 0:03:35]} g5 {[%emt 0:01:15]} 24. Bc4 {[%emt 0:00:48]} Kf7 {[%emt 0:00:38]} 25. Rae1 {[%emt 0:03:07]} Rfe8 {[%emt 0:00:57]} 26. b4 {[%emt 0:02:43]} Nd5 $15 {[%emt 0:02:36]} 27. Bxd5 {[%emt 0:05:52]} exd5 {[%emt 0:04:09]} 28. b5 {[%emt 0:06:35]} Rxe3 {[%emt 0:02:50]} 29. fxe3 {[%emt 0:00:05]} cxb5 {[%emt 0:01:53]} 30. Rb1 {[%emt 0:00:06]} a6 {[%emt 0:00:37]} 31. Kf2 {[%emt 0:03:33]} Rc8 {[%emt 0:00:26]} 32. Rb3 {[%emt 0:00:04]} Rc4 {[%emt 0:00:34]} 33. Kf3 {[%emt 0:01:14]} Ke6 {[%emt 0:00:57]} 34. e4 {[%emt 0:00:42]} b4 {[%emt 0:02:53]} 35. cxb4 {[%emt 0:02:40]} Rxd4 {[%emt 0:00:10]} 36. exd5+ {[%emt 0:00:19]} Kxd5 {[%emt 0:00:29]} 37. a3 {[%emt 0:01:29]} Kc4 {[%emt 0:00:29]} 38. Re3 {[%emt 0:00:06]} Rd3 {[%emt 0:00:12]} 39. Rxd3 {[%emt 0:00:38]} Kxd3 {[%emt 0:00:06]} 40. a4 {[%emt 0:00:06]} b5 {[%emt 0:31:08]} 41. axb5 {[%emt 0:00:14]} axb5 {[%emt 0:00:00]} 42. Kf2 {[%emt 0:00:06]} Kc4 {[%emt 0:00:00]} 43. Ke3 {[%emt 0:00:02]} Kxb4 {[%emt 0:00:00]} 44. Ke4 {[%emt 0:00:04]} Kc3 {[%emt 0:00:00]} 45. Kf5 {[%emt 0:00:03]} b4 {[%emt 0:00:00]} 46. Kxf6 {[%emt 0:00:03]} b3 {[%emt 0:00:00]} 47. Kxg5 {[%emt 0:00:04]} b2 {[%emt 0:00:00]} 48. Kxh4 {[%emt 0:00:04]} b1=Q {[%emt 0:00:00]} 49. g5 {[%emt 0:00:20]} Qg6 {[%emt 0:00:00]} 50. Kg4 {[%emt 0:00:05]} Kd4 {[%emt 0:00:00]} 51. h4 {[%emt 0:00:03]} Ke4 {[%emt 0:00:00]} 52. Kg3 {[%emt 0:00:39]} Qh5 {[%emt 0:00:00]} 53. Kh3 {[%emt 0:00:08]} Kf3 {[%emt 0:00:00]} 54. Kh2 {[%emt 0:00:10]} Qxh4+ {[%emt 0:00:00]} 55. Kg1 {[%emt 0:00:03]} Qf2+ 1/2-1/2

[Event "EYCC 2017"]
[Site "Mamaia"]
[Date "2017.09.12"]
[Round "7"]
[White "Dwilewicz, Katarzyna"]
[Black "Asatryan, Sona"]
[Result "1/2-1/2"]
[ECO "B10"]
[WhiteElo "1884"]
[BlackElo "2043"]
[Annotator "NA RC"]
[PlyCount "146"]
[EventDate "2017.??.??"]
[EventType "swiss"]
[EventCountry "ROU"]
[SourceTitle "playchess.com"]
[Source "ChessBase"]
[SourceQuality "1"]
[TimeControl "40/5400+30:1800+30"]

1. e4 {[%emt 0:00:00]} c6 {[%emt 0:00:14]} 2. c4 {[%emt 0:00:00]} d5 {[%emt 0:00:13]} 3. exd5 {[%emt 0:00:00]} cxd5 {[%emt 0:00:05]} 4. cxd5 {[%emt 0:00:00]} Qxd5 {[%emt 0:01:26]} 5. Nc3 {[%emt 0:00:07]} Qa5 {[%emt 0:02:09]} 6. d4 {[%emt 0:00:18]} Nf6 {[%emt 0:00:21]} 7. Nf3 {[%emt 0:01:45]} g6 {[%emt 0:03:09]} 8. Bc4 {[%emt 0:02:18]} Bg7 {[%emt 0:02:55]} 9. O-O {[%emt 0:00:58] B10: Caro-Kann: 2 d3 and 2 c4} (9. Qb3 O-O 10. O-O e6 11. Bf4 Nc6 12. Rad1 Qf5 13. Bd6 Rd8 14. Bc7 Rd7 15. Bd3 Qh5 16. Bg3 b6 17. Qa4 Bb7 18. Be2 Qa5 19. Qxa5 Nxa5 20. Ne5 Rdd8 21. b4 Nc6 22. Bf3 Nd5 23. Nxd5 {½-½ (23) Margolin,B (2447)-Holzschuh,S (2327) Germany 2010}) 9... O-O {[%emt 0:01:12]} 10. Qe2 {[%emt 0:02:41]} Bg4 {[%emt 0:03:19]} 11. h3 {[%emt 0:02:10]} Bxf3 {[%emt 0:00:13]} 12. Qxf3 {[%emt 0:00:08]} Nc6 {[%emt 0:02:24]} 13. Rd1 {[%emt 0:07:01]} Rfd8 $146 {[%emt 0:04:22]} ({Predecessor:} 13... Rad8 14. Be3 Nh5 15. Bd5 Rd6 16. Bxc6 Rxc6 {1-0 (34) Klatt,P (2070)-Kirstein,D Dortmund 1998}) 14. Be3 {[%emt 0:08:00]} Rac8 {[%emt 0:08:42]} 15. Rac1 {[%emt 0:08:40]} Qb4 {[%emt 0:06:28]} 16. b3 {[%emt 0:10:53]} Na5 {[%emt 0:08:38]} 17. Nd5 {[%emt 0:11:42]} (17. a3 $5 Qxa3 18. Nb5 $14) 17... Nxd5 {[%emt 0:09:31]} 18. Bxd5 {[%emt 0:00:44]} e6 {[%emt 0:00:27]} 19. Bd2 {[%emt 0:06:35]} Qb5 {[%emt 0:06:02]} 20. Bxa5 {[%emt 0:02:24]} Rxc1 {[%emt 0:01:53]} 21. Rxc1 {[%emt 0:00:46]} Qxa5 {[%emt 0:00:16]} 22. Bxb7 {[%emt 0:00:32]} Bxd4 {[%emt 0:03:58]} 23. a4 {[%emt 0:06:31]} Qd2 {[%emt 0:04:28]} 24. Rf1 {[%emt 0:00:24]} Bb6 {[%emt 0:01:25]} 25. Ba6 {[%emt 0:02:07]} Rd5 {[%emt 0:01:07]} 26. Bc4 {[%emt 0:03:53]} Rf5 {[%emt 0:01:51]} 27. Qe2 {[%emt 0:00:21]} Qf4 {[%emt 0:01:14]} 28. Bd3 {[%emt 0:07:28]} Rf6 $17 {[%emt 0:06:09]} 29. Be4 {[%emt 0:07:39]} h5 {[%emt 0:01:44]} 30. Qf3 {[%emt 0:05:15]} Qe5 {[%emt 0:01:00]} 31. Qd3 {[%emt 0:01:00]} h4 {[%emt 0:03:04]} 32. b4 {[%emt 0:02:16]} Bc7 {[%emt 0:05:19]} 33. g3 {[%emt 0:01:17]} hxg3 {[%emt 0:01:47]} 34. fxg3 {[%emt 0:00:05]} Rxf1+ {[%emt 0:03:13]} 35. Kxf1 {[%emt 0:00:01]} Qxg3 {[%emt 0:02:26]} 36. Qxg3 {[%emt 0:00:17]} Bxg3 {[%emt 0:00:01]} 37. a5 {[%emt 0:01:39]} a6 {[%emt 0:02:19]} 38. Bd3 {[%emt 0:00:20]} Bd6 {[%emt 0:00:26]} 39. b5 {[%emt 0:00:05]} axb5 {[%emt 0:00:27]} 40. Bxb5 {[%emt 0:00:00]} f5 {[%emt 0:02:08]} 41. Ke2 {[%emt 0:03:58]} Kg7 {[%emt 0:01:49]} 42. Kd3 {[%emt 0:01:41]} Kf6 {[%emt 0:02:54]} 43. h4 {[%emt 0:03:37]} Bc7 {[%emt 0:02:51]} 44. a6 {[%emt 0:00:46]} Bb6 {[%emt 0:00:06]} 45. Be8 {[%emt 0:00:57]} Ba7 {[%emt 0:06:24]} 46. Ke2 {[%emt 0:15:11]} e5 {[%emt 0:03:34]} 47. Kf3 {[%emt 0:00:33]} Bb6 {[%emt 0:02:48]} 48. Ba4 {[%emt 0:01:26]} Bc5 {[%emt 0:02:11]} 49. Be8 {[%emt 0:00:20]} Ba7 {[%emt 0:00:15]} 50. Bc6 {[%emt 0:02:05]} e4+ {[%emt 0:03:10]} 51. Kf4 {[%emt 0:05:12]} Bb8+ {[%emt 0:01:16]} 52. Ke3 {[%emt 0:00:02]} Kg7 {[%emt 0:04:30]} 53. Be8 {[%emt 0:01:13]} Kh6 {[%emt 0:01:00]} 54. Bf7 {[%emt 0:00:18]} Kh5 {[%emt 0:00:55]} 55. Be8 {[%emt 0:00:02]} Kxh4 {[%emt 0:02:35]} 56. Bxg6 {[%emt 0:00:14]} Kg4 {[%emt 0:01:18]} 57. Kd4 {[%emt 0:01:39]} Kg5 {[%emt 0:01:15]} 58. Be8 {[%emt 0:00:30]} Ba7+ {[%emt 0:01:11]} 59. Ke5 {[%emt 0:00:35]} e3 {[%emt 0:00:55]} 60. Bb5 {[%emt 0:00:07]} Bb8+ {[%emt 0:00:21]} 61. Kd4 {[%emt 0:01:01]} Kf4 {[%emt 0:00:08]} 62. Be2 {[%emt 0:00:23]} Ba7+ {[%emt 0:00:22]} 63. Kd5 {[%emt 0:00:16]} Kg3 {[%emt 0:00:55]} 64. Ke5 {[%emt 0:00:10]} f4 {[%emt 0:00:56]} 65. Ke4 {[%emt 0:00:01]} Kf2 {[%emt 0:00:24]} 66. Bh5 {[%emt 0:00:26]} Kg3 {[%emt 0:00:18]} 67. Bf3 {[%emt 0:00:57]} Bb8 {[%emt 0:00:21]} 68. Bh5 {[%emt 0:00:34]} Kh4 {[%emt 0:00:52]} 69. Be2 {[%emt 0:00:17]} Kg3 {[%emt 0:00:24]} 70. Bh5 {[%emt 0:00:06]} Kf2 {[%emt 0:00:17]} 71. a7 {[%emt 0:00:13]} Bxa7 {[%emt 0:00:12]} 72. Kxf4 {[%emt 0:00:03]} e2 {[%emt 0:00:20]} 73. Bxe2 {[%emt 0:00:03]} Kxe2 {[%emt 0:00:06]} 1/2-1/2

[Event "EYCC 2017"]
[Site "Mamaia"]
[Date "2017.09.12"]
[Round "7"]
[White "Karykowska, Anna"]
[Black "Semonaviciute, Agne"]
[Result "1-0"]
[ECO "B01"]
[WhiteElo "1884"]
[BlackElo "1854"]
[Annotator "NA RC"]
[PlyCount "167"]
[EventDate "2017.??.??"]
[EventType "swiss"]
[EventCountry "ROU"]
[SourceTitle "playchess.com"]
[Source "ChessBase"]
[SourceQuality "1"]
[TimeControl "40/5400+30:1800+30"]

1. e4 {[%emt 0:00:00]} d5 {[%emt 0:00:08]} 2. exd5 {[%emt 0:00:00]} Qxd5 {[%emt 0:00:05]} 3. Nc3 {[%emt 0:00:11]} Qa5 {[%emt 0:00:13]} 4. Nf3 {[%emt 0:03:59]} Nf6 {[%emt 0:02:08]} 5. d4 {[%emt 0:05:53]} c6 {[%emt 0:00:14]} 6. Be2 {[%emt 0:02:49]} Bf5 {[%emt 0:01:08]} 7. Ne5 {[%emt 0:09:12]} e6 {[%emt 0:01:26]} 8. g4 {[%emt 0:08:27]} Bg6 {[%emt 0:01:12]} 9. h4 {[%emt 0:01:57]} Nbd7 {[%emt 0:02:29]} 10. Nc4 {[%emt 0:05:57]} Qc7 {[%emt 0:03:51]} 11. h5 {[%emt 0:03:03]} Be4 {[%emt 0:00:23]} 12. Nxe4 {[%emt 0:00:40]} Nxe4 {[%emt 0:00:17]} 13. Qd3 {[%emt 0:00:41]} Nef6 {[%emt 0:01:26]} 14. Bd2 {[%emt 0:03:51]} O-O-O {[%emt 0:04:24]} 15. O-O-O {[%emt 0:02:49]} b5 {[%emt 0:16:00]} 16. Na5 {[%emt 0:05:22]} Ne5 {[%emt 0:12:49]} 17. Qg3 {[%emt 0:13:04]} Rxd4 {[%emt 0:10:26]} 18. Nb3 {[%emt 0:06:02]} Rd5 {[%emt 0:10:47]} 19. Bf4 {[%emt 0:07:24]} Bd6 {[%emt 0:01:46]} 20. Kb1 {[%emt 0:01:59]} Rd8 {[%emt 0:04:37]} 21. g5 {[%emt 0:03:09]} Ng8 {[%emt 0:06:34]} 22. Rxd5 {[%emt 0:01:46]} exd5 {[%emt 0:00:32]} 23. Bxe5 {[%emt 0:01:28]} Bxe5 {[%emt 0:00:07]} 24. Qd3 {[%emt 0:00:16]} h6 {[%emt 0:04:04]} 25. Nc5 {[%emt 0:01:04]} Qe7 {[%emt 0:02:28]} 26. Qa3 {[%emt 0:07:04]} Bd6 {[%emt 0:03:48]} 27. Bg4+ {[%emt 0:02:53]} Kb8 {[%emt 0:00:05]} 28. Na6+ {[%emt 0:00:42]} Kb7 {[%emt 0:01:16]} 29. Qa5 {[%emt 0:00:20]} Re8 {[%emt 0:01:27]} 30. a3 {[%emt 0:02:06]} hxg5 {[%emt 0:01:17]} 31. Nb4 {[%emt 0:00:46]} Bxb4 {[%emt 0:00:10]} 32. axb4 {[%emt 0:00:21]} Nf6 {[%emt 0:00:26]} 33. Bf5 {[%emt 0:00:33]} Ne4 {[%emt 0:00:23]} 34. Bxe4 {[%emt 0:00:27]} Qxe4 {[%emt 0:00:12]} 35. Rh3 {[%emt 0:00:26]} Qc4 {[%emt 0:02:37]} 36. Rh1 {[%emt 0:00:45]} Re2 {[%emt 0:03:35]} 37. Rc1 {[%emt 0:00:10]} Qe4 {[%emt 0:00:33]} 38. Qd8 {[%emt 0:00:44]} Qe7 {[%emt 0:00:05]} 39. Qh8 {[%emt 0:00:31]} Qe5 {[%emt 0:02:59]} 40. Qd8 {[%emt 0:00:00]} Qf5 {[%emt 0:00:14]} 41. Ka2 {[%emt 0:03:03]} g4 {[%emt 0:04:32]} 42. Qf8 {[%emt 0:05:02]} Qxh5 {[%emt 0:02:37]} 43. Kb3 {[%emt 0:02:29]} Qg6 {[%emt 0:01:21]} 44. Qc5 {[%emt 0:01:56]} Qe4 {[%emt 0:02:09]} 45. Ka3 {[%emt 0:02:22]} Qf3+ {[%emt 0:00:33]} 46. b3 {[%emt 0:01:22]} Qxf2 {[%emt 0:00:27]} 47. Qd6 {[%emt 0:00:19]} Qf5 {[%emt 0:00:14]} 48. Rf1 {[%emt 0:01:23]} Qe6 {[%emt 0:04:09]} 49. Qf8 {[%emt 0:01:18]} f6 {[%emt 0:05:22]} 50. Qxg7+ {[%emt 0:00:10]} Qe7 {[%emt 0:00:05]} 51. Qxg4 {[%emt 0:01:17]} Re4 {[%emt 0:00:28]} 52. Qf5 {[%emt 0:05:14]} Rxb4 {[%emt 0:01:46]} 53. Ka2 {[%emt 0:01:06]} Kb6 {[%emt 0:00:37]} 54. Qc8 {[%emt 0:04:46]} Re4 {[%emt 0:01:12]} 55. Qb8+ {[%emt 0:00:45]} Kc5 {[%emt 0:00:25]} 56. Qh8 {[%emt 0:05:47]} Re2 {[%emt 0:01:06]} 57. Kb1 {[%emt 0:00:45]} Re1+ {[%emt 0:00:19]} 58. Rxe1 {[%emt 0:00:05]} Qxe1+ {[%emt 0:00:06]} 59. Kb2 {[%emt 0:00:12]} Qe5+ {[%emt 0:00:28]} 60. c3 {[%emt 0:00:36]} Kb6 {[%emt 0:02:58]} 61. Qd8+ {[%emt 0:00:52]} Kb7 {[%emt 0:00:08]} 62. b4 {[%emt 0:00:49]} Qe6 {[%emt 0:00:17]} 63. Qf8 {[%emt 0:00:25]} d4 {[%emt 0:05:23]} 64. cxd4 {[%emt 0:00:28]} Qe2+ {[%emt 0:00:08]} 65. Ka1 {[%emt 0:00:30]} Qd1+ {[%emt 0:00:39]} 66. Ka2 {[%emt 0:00:07]} Qxd4 {[%emt 0:00:56]} 67. Qe7+ {[%emt 0:00:32]} Kb6 {[%emt 0:03:47]} 68. Qf8 {[%emt 0:00:24]} c5 {[%emt 0:01:10]} 69. Qb8+ {[%emt 0:00:51]} Kc6 {[%emt 0:00:05]} 70. Qc8+ {[%emt 0:00:39]} Kd5 {[%emt 0:00:10]} 71. Qg8+ {[%emt 0:00:28]} Ke4 {[%emt 0:00:37]} 72. Qe6+ {[%emt 0:00:30]} Kd3 {[%emt 0:00:36]} 73. Qh3+ {[%emt 0:00:33]} Qe3 {[%emt 0:01:20]} 74. Qxe3+ {[%emt 0:00:15]} Kxe3 {[%emt 0:00:09]} 75. bxc5 {[%emt 0:00:03]} f5 {[%emt 0:00:13]} 76. c6 {[%emt 0:00:03]} f4 {[%emt 0:00:04]} 77. c7 {[%emt 0:00:03]} f3 {[%emt 0:00:04]} 78. c8=Q {[%emt 0:00:05]} f2 {[%emt 0:00:02]} 79. Qe8+ {[%emt 0:01:28]} Kf3 {[%emt 0:01:49]} 80. Qxb5 {[%emt 0:00:09]} Kg2 {[%emt 0:00:05]} 81. Qg5+ {[%emt 0:00:24]} Kf3 {[%emt 0:00:06]} 82. Qf5+ {[%emt 0:00:14]} Ke2 {[%emt 0:00:23]} 83. Qe4+ {[%emt 0:00:12]} Kd2 {[%emt 0:00:27]} 84. Qf3 {[%emt 0:00:15]} 1-0

[Event "EYCC 2017"]
[Site "Mamaia"]
[Date "2017.09.12"]
[Round "7"]
[White "Makkar, Rajat"]
[Black "Kolesov, Gordey"]
[Result "0-1"]
[ECO "A05"]
[WhiteElo "1880"]
[BlackElo "1672"]
[Annotator "NA RC"]
[PlyCount "72"]
[EventDate "2017.??.??"]
[EventType "swiss"]
[EventCountry "ROU"]
[SourceTitle "playchess.com"]
[Source "ChessBase"]
[SourceQuality "1"]
[TimeControl "40/5400+30:1800+30"]

1. Nf3 {[%emt 0:00:00]} Nf6 {[%emt 0:00:10]} 2. c4 {[%emt 0:00:12]} g6 {[%emt 0:00:10]} 3. Nc3 {[%emt 0:07:00]} Bg7 {[%emt 0:00:36]} 4. d4 {[%emt 0:00:28]} O-O {[%emt 0:01:01]} 5. e3 {[%emt 0:05:40]} d6 {[%emt 0:03:52]} 6. Bd3 {[%emt 0:03:21]} Re8 {[%emt 0:05:57]} 7. O-O {[%emt 0:03:25] E61: King's Indian: Early deviations for White, including Smyslov System} e5 {[%emt 0:01:24]} 8. Qc2 {[%emt 0:03:28]} Nc6 {[%emt 0:00:54]} 9. a3 {[%emt 0:01:20]} exd4 $146 {[%emt 0:05:18]} ({Predecessor:} 9... Bg4 10. dxe5 dxe5 11. Nd2 a5 12. h3 Be6 13. Nce4 Nxe4 14. Nxe4 Qe7 {0-1 (25) Shyam,S (1980)-Kurnosov,I (2658) Bhubaneswar 2009}) 10. Nxd4 {[%emt 0:02:16]} Nxd4 {[%emt 0:00:43]} 11. exd4 {[%emt 0:00:03]} Ng4 {[%emt 0:08:12]} 12. h3 {[%emt 0:06:08]} Nh6 {[%emt 0:01:18]} 13. Bxh6 {[%emt 0:06:46]} Bxh6 {[%emt 0:00:11]} 14. Rfe1 {[%emt 0:00:18]} Bd7 {[%emt 0:02:34]} 15. Nd5 {[%emt 0:03:04]} Bg7 {[%emt 0:02:31]} 16. Rxe8+ {[%emt 0:01:26]} Bxe8 {[%emt 0:00:09]} 17. Re1 {[%emt 0:00:25]} Bxd4 {[%emt 0:01:54]} 18. Qd2 {[%emt 0:02:28]} c5 {[%emt 0:14:23]} 19. Qh6 {[%emt 0:11:01]} Bg7 {[%emt 0:06:13]} 20. Qd2 {[%emt 0:02:48]} Ba4 {[%emt 0:03:06]} 21. Bc2 {[%emt 0:02:02]} Bxc2 {[%emt 0:03:40]} 22. Qxc2 {[%emt 0:00:01]} Qh4 {[%emt 0:00:48]} 23. Re4 {[%emt 0:01:13]} Qg5 {[%emt 0:05:25]} 24. Re7 {[%emt 0:05:37]} Bd4 {[%emt 0:05:06]} 25. b3 {[%emt 0:03:30]} Rf8 {[%emt 0:04:40]} 26. a4 {[%emt 0:03:32]} Kh8 {[%emt 0:03:49]} 27. Qe2 {[%emt 0:05:49]} Qh4 {[%emt 0:01:14]} 28. Rxb7 {[%emt 0:01:39]} f5 {[%emt 0:02:29]} 29. Re7 {[%emt 0:01:07]} f4 {[%emt 0:00:51]} 30. Qf3 {[%emt 0:01:04]} h5 {[%emt 0:01:39]} 31. Re6 {[%emt 0:04:31]} Kg7 $18 {[%emt 0:05:18] [#]} (31... Qg3 $16) 32. Ne7 {[%emt 0:06:14]} ({Don't take} 32. Rxd6 $6 Rf7 $16) ({Better is} 32. Nc7 $1 $18) 32... Rf6 {[%emt 0:03:20]} 33. Rxf6 {[%emt 0:00:30]} Qxf6 {[%emt 0:02:48]} 34. Nd5 {[%emt 0:00:46]} Qf5 {[%emt 0:01:12]} 35. Nxf4 {[%emt 0:00:36]} Be5 {[%emt 0:00:23]} 36. Nd5 {[%emt 0:01:41]} Qb1+ {[%emt 0:00:14]} 0-1

[Event "EYCC 2017"]
[Site "Mamaia"]
[Date "2017.09.12"]
[Round "7"]
[White "Esadze, Tamari"]
[Black "Hercog, Nusa"]
[Result "1-0"]
[ECO "B44"]
[WhiteElo "1863"]
[BlackElo "2034"]
[Annotator "NA RC"]
[PlyCount "69"]
[EventDate "2017.??.??"]
[EventType "swiss"]
[EventCountry "ROU"]
[SourceTitle "playchess.com"]
[Source "ChessBase"]
[SourceQuality "1"]
[TimeControl "40/5400+30:1800+30"]

1. e4 {[%emt 0:00:00]} c5 {[%emt 0:00:04]} 2. Nf3 {[%emt 0:00:05]} e6 {[%emt 0:00:06]} 3. d4 {[%emt 0:00:07]} cxd4 {[%emt 0:00:06]} 4. Nxd4 {[%emt 0:00:04]} Nc6 {[%emt 0:00:06]} 5. c4 {[%emt 0:00:15]} Qc7 {[%emt 0:01:29]} 6. Nc3 {[%emt 0:00:57]} a6 {[%emt 0:01:16]} 7. Be2 {[%emt 0:02:10]} Nf6 {[%emt 0:01:53]} 8. a3 {[%emt 0:04:38] B41: Sicilian: Kan Variation: 5 c4} (8. O-O Nxd4 9. Qxd4 Bd6 10. g3 O-O 11. Be3 Be5 12. Qd3 Bxc3 13. bxc3 b5 14. c5 Bb7 15. f3 Bc6 16. Qd6 {½-½ (56) Goganov,A (2603)-Svidler,P (2739) St Petersburg 2015}) 8... h6 {[%emt 0:07:44]} 9. Be3 {[%emt 0:01:23]} Be7 {[%emt 0:06:25]} 10. O-O $146 {[%emt 0:01:19]} ({Predecessor:} 10. Rc1 Nxd4 11. Qxd4 Bd6 12. c5 Be5 13. Qd2 O-O 14. Bf3 Rd8 15. Na4 d5 16. cxd6 Qxd6 17. Qxd6 Bxd6 {½-½ (46) Bomans,A (2249)-Draftian,A (2274) Gent 2016}) 10... O-O {[%emt 0:02:44]} 11. f4 {[%emt 0:02:06]} d6 {[%emt 0:04:19]} 12. Rc1 {[%emt 0:01:08]} Bd7 {[%emt 0:04:38]} 13. b4 {[%emt 0:01:31]} Nxd4 {[%emt 0:02:45]} 14. Bxd4 {[%emt 0:03:18]} Rfd8 {[%emt 0:06:56]} 15. Qd3 {[%emt 0:13:55]} Ne8 {[%emt 0:15:07]} 16. Qg3 {[%emt 0:11:26]} b6 $2 {[%emt 0:08:51]} ({Black should try} 16... Bf6 $1 $14 17. e5 dxe5 18. Bxe5 (18. fxe5 Bc6 $11) 18... Bxe5 19. fxe5 Bc6) 17. f5 {[%emt 0:06:46]} Bg5 {[%emt 0:05:19]} 18. Rcd1 {[%emt 0:02:17]} Kh7 {[%emt 0:04:58]} 19. Bh5 $18 {[%emt 0:15:34]} Bc8 {[%emt 0:05:49]} 20. fxe6 {[%emt 0:05:52]} Bxe6 {[%emt 0:00:41]} 21. Nd5 {[%emt 0:02:55]} Bxd5 {[%emt 0:00:56]} 22. exd5 {[%emt 0:01:13]} Bf6 {[%emt 0:02:34]} 23. Qd3+ {[%emt 0:02:50]} Kg8 {[%emt 0:00:36]} 24. Qe3 {[%emt 0:07:44]} Rab8 {[%emt 0:02:59]} 25. Qg3 {[%emt 0:06:07]} Kh7 {[%emt 0:02:19]} 26. Qf4 {[%emt 0:02:15]} Bxd4+ {[%emt 0:01:57]} 27. Rxd4 {[%emt 0:00:05]} Nf6 {[%emt 0:00:38]} 28. Bd1 {[%emt 0:02:10]} Re8 {[%emt 0:01:06]} 29. Bc2+ {[%emt 0:00:03]} Kg8 {[%emt 0:01:54]} 30. Qh4 {[%emt 0:00:23]} Re2 {[%emt 0:02:14]} 31. Bd3 {[%emt 0:01:03]} Re5 {[%emt 0:00:06]} 32. Rxf6 {[%emt 0:02:14]} gxf6 {[%emt 0:00:44]} 33. Qxh6 {[%emt 0:00:08]} Qe7 {[%emt 0:02:58]} 34. Bh7+ {[%emt 0:00:04]} Kh8 {[%emt 0:00:03]} 35. Bg6+ {[%emt 0:00:05]} 1-0

[Event "EYCC 2017"]
[Site "Mamaia"]
[Date "2017.09.12"]
[Round "7"]
[White "Samadov, Read"]
[Black "Strybuk, Artsiom I"]
[Result "1/2-1/2"]
[ECO "B38"]
[WhiteElo "1848"]
[BlackElo "1790"]
[Annotator "NA"]
[PlyCount "107"]
[EventDate "2017.??.??"]
[EventType "swiss"]
[EventCountry "ROU"]
[SourceTitle "playchess.com"]
[Source "ChessBase"]
[SourceQuality "1"]
[TimeControl "40/5400+30:1800+30"]

1. e4 {[%emt 0:00:00]} c5 {[%emt 0:00:07]} 2. Nf3 {[%emt 0:00:00]} Nc6 {[%emt 0:00:14]} 3. d4 {[%emt 0:00:00]} cxd4 {[%emt 0:00:07]} 4. Nxd4 {[%emt 0:00:00]} g6 {[%emt 0:00:07]} 5. c4 {[%emt 0:01:02]} Bg7 {[%emt 0:00:58]} 6. Be3 {[%emt 0:01:11]} d6 {[%emt 0:00:52]} 7. Nc3 {[%emt 0:00:44]} Nf6 {[%emt 0:00:31]} 8. Be2 {[%emt 0:00:47]} O-O {[%emt 0:00:19]} 9. O-O {[%emt 0:00:16]} Bd7 {[%emt 0:00:05]} 10. f4 {[%emt 0:05:36]} Rc8 {[%emt 0:10:46]} 11. Qd2 {[%emt 0:05:56]} Nxd4 {[%emt 0:02:13]} 12. Bxd4 {[%emt 0:00:47]} Bc6 {[%emt 0:01:41]} 13. Bf3 {[%emt 0:04:15]} Nd7 {[%emt 0:02:18]} 14. Bxg7 {[%emt 0:03:40]} Kxg7 {[%emt 0:00:02]} 15. Rac1 {[%emt 0:05:46]} Qb6+ {[%emt 0:03:20]} 16. Kh1 {[%emt 0:00:55]} a5 {[%emt 0:02:03]} 17. b3 {[%emt 0:12:00]} Nc5 {[%emt 0:07:49]} 18. Nd5 {[%emt 0:09:00]} Bxd5 {[%emt 0:00:59]} 19. exd5 {[%emt 0:00:23]} Qb4 {[%emt 0:01:23]} 20. Qd4+ {[%emt 0:08:16]} f6 {[%emt 0:01:27]} 21. Rce1 {[%emt 0:06:24]} Rc7 {[%emt 0:02:04]} 22. f5 {[%emt 0:02:46]} a4 {[%emt 0:03:52]} 23. fxg6 {[%emt 0:03:20]} hxg6 {[%emt 0:00:03]} 24. Bd1 {[%emt 0:01:12]} axb3 {[%emt 0:05:21]} 25. axb3 {[%emt 0:00:21]} b5 {[%emt 0:04:06]} 26. Bc2 {[%emt 0:04:01]} bxc4 {[%emt 0:12:23]} 27. Bxg6 {[%emt 0:01:37]} Kxg6 {[%emt 0:15:52]} 28. Qg4+ {[%emt 0:00:21]} Kf7 {[%emt 0:00:08]} 29. Qh5+ {[%emt 0:00:07]} Kg7 {[%emt 0:00:07]} 30. Re3 {[%emt 0:01:45]} Qxb3 {[%emt 0:02:28]} 31. Rxb3 {[%emt 0:01:23]} cxb3 {[%emt 0:00:16]} 32. Rf4 {[%emt 0:00:34]} Ne4 {[%emt 0:00:55]} 33. Rg4+ {[%emt 0:01:46]} Ng5 {[%emt 0:02:23]} 34. Rxg5+ {[%emt 0:01:05]} fxg5 {[%emt 0:00:03]} 35. Qxg5+ {[%emt 0:00:07]} Kf7 {[%emt 0:01:34]} 36. Qh5+ {[%emt 0:00:27]} Kf6 {[%emt 0:02:02]} 37. Qh6+ {[%emt 0:00:51]} Ke5 {[%emt 0:01:03]} 38. Qe3+ {[%emt 0:00:26]} Kxd5 {[%emt 0:04:23]} 39. Qxb3+ {[%emt 0:00:13]} Rc4 {[%emt 0:01:26]} 40. Qd3+ {[%emt 0:00:00]} Kc5 {[%emt 0:01:38]} 41. Qa3+ {[%emt 0:08:18]} Kc6 {[%emt 0:02:05]} 42. Qa6+ {[%emt 0:01:58]} Kd5 {[%emt 0:01:08]} 43. Qb5+ {[%emt 0:01:27]} Rc5 {[%emt 0:00:41]} 44. Qd3+ {[%emt 0:00:52]} Ke6 {[%emt 0:01:29]} 45. Qb3+ {[%emt 0:04:04]} Ke5 {[%emt 0:14:00]} 46. Qe3+ {[%emt 0:01:36]} Kd5 {[%emt 0:00:23]} 47. Qb3+ {[%emt 0:00:23]} Kc6 {[%emt 0:00:20]} 48. Qa4+ {[%emt 0:03:19]} Kb6 {[%emt 0:00:42]} 49. Qb3+ {[%emt 0:01:15]} Kc7 {[%emt 0:00:31]} 50. h3 {[%emt 0:03:21]} Rf1+ {[%emt 0:00:48]} 51. Kh2 {[%emt 0:00:13]} Rf2 {[%emt 0:00:13]} 52. Qe3 {[%emt 0:01:38]} Rcc2 {[%emt 0:03:10]} 53. Qxe7+ {[%emt 0:00:20]} Kc6 54. Qg5 1/2-1/2